[Event "Titled Tuesday Blitz April 19 Late 2022"]
[White "Derraugh, Geordie"]
[Black "Bongo Akanga Ndjila, Barthelemy"]
[WhiteFideId "2603950"]
[BlackFideId "10609431"]
[WhiteElo "2116"]
[BlackElo "1768"]
[Result "1-0"]
[Round "02"]
[TimeControl "180+1"]
[Date "2022.04.19"]
[WhiteClock "0:00:21"]
[BlackClock "0:00:41"]

1. e4 {[%clk 0:03:00]}  c6 {[%clk 0:02:57]} 2. c4 {[%clk 0:03:00]}  d5 {[%clk 0:02:58]} 3. exd5 {[%clk 0:03:00]}  cxd5 {[%clk 0:02:57]} 4. cxd5 {[%clk 0:03:01]}  Nf6 {[%clk 0:02:57]} 5. Nc3 {[%clk 0:03:02]}  Nxd5 {[%clk 0:02:58]} 6. Nf3 {[%clk 0:03:02]}  Nc6 {[%clk 0:02:56]} 7. Bc4 {[%clk 0:03:01]}  e6 {[%clk 0:02:56]} 8. O-O {[%clk 0:03:00]}  Nb6 {[%clk 0:02:55]} 9. Bb3 {[%clk 0:03:00]}  Be7 {[%clk 0:02:55]} 10. Re1 {[%clk 0:03:00]}  O-O {[%clk 0:02:55]} 11. d4 {[%clk 0:03:00]}  Na5 {[%clk 0:02:53]} 12. Bc2 {[%clk 0:02:59]}  Bd7 {[%clk 0:02:49]} 13. Qd3 {[%clk 0:02:52]}  g6 {[%clk 0:02:44]} 14. Bh6 {[%clk 0:02:53]}  Re8 {[%clk 0:02:43]} 15. Ne5 {[%clk 0:02:53]}  Bf8 {[%clk 0:02:37]} 16. Bxf8 {[%clk 0:02:46]}  Rxf8 {[%clk 0:02:34]} 17. Re3 {[%clk 0:02:42]}  Bc6 {[%clk 0:02:32]} 18. Rh3 {[%clk 0:02:39]}  Rc8 {[%clk 0:02:06]} 19. Rxh7 {[%clk 0:01:54]}  Kxh7 {[%clk 0:01:57]} 20. Nxg6 {[%clk 0:01:53]}  f5 {[%clk 0:01:52]} 21. Nxf8+ {[%clk 0:01:48]}  Qxf8 {[%clk 0:01:51]} 22. Re1 {[%clk 0:01:44]}  Qg7 {[%clk 0:01:47]} 23. Qh3+ {[%clk 0:01:42]}  Kg8 {[%clk 0:01:46]} 24. Rxe6 {[%clk 0:01:40]}  Nac4 {[%clk 0:01:41]} 25. Bxf5 {[%clk 0:01:36]}  Qxg2+ {[%clk 0:01:33]} 26. Qxg2+ {[%clk 0:01:34]}  Bxg2 {[%clk 0:01:34]} 27. Kxg2 {[%clk 0:01:08]}  Rc7 {[%clk 0:01:32]} 28. b3 {[%clk 0:01:01]}  Na5 {[%clk 0:01:22]} 29. Nb5 {[%clk 0:01:00]}  Rg7+ {[%clk 0:01:21]} 30. Rg6 {[%clk 0:00:57]}  Nd5 {[%clk 0:01:20]} 31. Rxg7+ {[%clk 0:00:55]}  Kxg7 {[%clk 0:01:20]} 32. Nxa7 {[%clk 0:00:54]}  Kf6 {[%clk 0:01:19]} 33. Be4 {[%clk 0:00:50]}  Nf4+ {[%clk 0:01:17]} 34. Kf3 {[%clk 0:00:50]}  Ne6 {[%clk 0:01:18]} 35. Ke3 {[%clk 0:00:42]}  Kg5 {[%clk 0:01:00]} 36. Bd5 {[%clk 0:00:37]}  Nf4 {[%clk 0:00:59]} 37. Bg8 {[%clk 0:00:29]}  b6 {[%clk 0:00:55]} 38. h4+ {[%clk 0:00:27]}  Kg4 {[%clk 0:00:52]} 39. Bh7 {[%clk 0:00:26]}  Nb7 {[%clk 0:00:50]} 40. Be4 {[%clk 0:00:24]}  Nd6 {[%clk 0:00:49]} 41. h5 {[%clk 0:00:20]}  Nxh5 {[%clk 0:00:49]} 42. Bf3+ {[%clk 0:00:20]}  Kg5 {[%clk 0:00:49]} 43. Bxh5 {[%clk 0:00:21]}  Kxh5 {[%clk 0:00:50]} 44. Kf4 {[%clk 0:00:21]}  Kg6 {[%clk 0:00:50]} 45. Ke5 {[%clk 0:00:21]}  Nf7+ {[%clk 0:00:47]} 46. Kd5 {[%clk 0:00:21]}  Kf5 {[%clk 0:00:47]} 47. Kc6 {[%clk 0:00:21]}  Nd8+ {[%clk 0:00:42]} 48. Kxb6 {[%clk 0:00:21]}  Ne6 {[%clk 0:00:42]} 49. d5 {[%clk 0:00:21]}  Nd4 {[%clk 0:00:43]} 50. d6 {[%clk 0:00:21]}  Ke5 {[%clk 0:00:44]} 51. d7 {[%clk 0:00:20]}  Ne6 {[%clk 0:00:41]} 52. Nc6+ {[%clk 0:00:21]}  Kd6 {[%clk 0:00:41]} 53. d8=Q+ {[%clk 0:00:21]}  Nxd8 {[%clk 0:00:41]} 54. Nxd8 {[%clk 0:00:21]} 1-0


[Site "https://www.chess.com"]

[Event "Titled Tuesday Blitz April 19 Late 2022"]
[White "Dilmukhametov, Artur"]
[Black "Lewicki, Miroslaw"]
[WhiteFideId "24179922"]
[BlackFideId "1113380"]
[WhiteElo "2244"]
[BlackElo "2283"]
[Result "1-0"]
[Round "02"]
[TimeControl "180+1"]
[Date "2022.04.19"]
[WhiteClock "0:01:08"]
[BlackClock "0:00:47"]

1. d4 {[%clk 0:03:00]}  b6 {[%clk 0:02:58]} 2. Nc3 {[%clk 0:02:57]}  Bb7 {[%clk 0:02:59]} 3. e4 {[%clk 0:02:58]}  g6 {[%clk 0:02:59]} 4. g3 {[%clk 0:02:58]}  Bg7 {[%clk 0:02:59]} 5. Bg2 {[%clk 0:02:59]}  e6 {[%clk 0:02:59]} 6. Nge2 {[%clk 0:02:59]}  Ne7 {[%clk 0:03:00]} 7. O-O {[%clk 0:03:00]}  O-O {[%clk 0:03:00]} 8. h3 {[%clk 0:03:00]}  d5 {[%clk 0:03:00]} 9. e5 {[%clk 0:02:59]}  c5 {[%clk 0:03:00]} 10. Bg5 {[%clk 0:02:54]}  cxd4 {[%clk 0:02:59]} 11. Nxd4 {[%clk 0:02:55]}  Bxe5 {[%clk 0:02:58]} 12. Re1 {[%clk 0:02:46]}  Bg7 {[%clk 0:02:54]} 13. Nxe6 {[%clk 0:02:32]}  fxe6 {[%clk 0:02:54]} 14. Rxe6 {[%clk 0:02:33]}  Bxc3 {[%clk 0:02:08]} 15. Rxe7 {[%clk 0:02:24]}  Bb4 {[%clk 0:01:52]} 16. Rg7+ {[%clk 0:02:19]}  Kxg7 {[%clk 0:01:51]} 17. Bxd8 {[%clk 0:02:20]}  Bc5 {[%clk 0:01:51]} 18. Bg5 {[%clk 0:01:52]}  Rxf2 {[%clk 0:01:49]} 19. Kh1 {[%clk 0:01:41]}  Nc6 {[%clk 0:01:31]} 20. Qxd5 {[%clk 0:01:17]}  Rxg2 {[%clk 0:01:27]} 21. Qd7+ {[%clk 0:01:13]}  Ne7 {[%clk 0:00:49]} 22. Qxb7 {[%clk 0:01:11]}  Rxg3 {[%clk 0:00:47]} 23. Bxe7 {[%clk 0:01:08]} 1-0


[Site "https://www.chess.com"]

[Event "Titled Tuesday Blitz April 19 Late 2022"]
[White "Dubov, Daniil"]
[Black "Najer, Evgeniy"]
[WhiteFideId "24126055"]
[BlackFideId "4118987"]
[WhiteElo "2791"]
[BlackElo "2562"]
[Result "0-1"]
[Round "02"]
[TimeControl "180+1"]
[Date "2022.04.19"]
[WhiteClock "0:01:03"]
[BlackClock "0:00:21"]

1. d4 {[%clk 0:02:58]}  Nf6 {[%clk 0:02:56]} 2. Nf3 {[%clk 0:02:59]}  d5 {[%clk 0:02:55]} 3. Bf4 {[%clk 0:02:58]}  c5 {[%clk 0:02:52]} 4. e3 {[%clk 0:02:49]}  e6 {[%clk 0:02:52]} 5. Nbd2 {[%clk 0:02:49]}  Bd6 {[%clk 0:02:48]} 6. Bg3 {[%clk 0:02:48]}  O-O {[%clk 0:02:43]} 7. c3 {[%clk 0:02:46]}  b6 {[%clk 0:02:43]} 8. Bxd6 {[%clk 0:02:44]}  Qxd6 {[%clk 0:02:42]} 9. Ne5 {[%clk 0:02:45]}  Nfd7 {[%clk 0:02:38]} 10. f4 {[%clk 0:02:44]}  f6 {[%clk 0:02:34]} 11. Nef3 {[%clk 0:02:44]}  cxd4 {[%clk 0:02:23]} 12. cxd4 {[%clk 0:02:43]}  e5 {[%clk 0:02:06]} 13. fxe5 {[%clk 0:02:29]}  fxe5 {[%clk 0:02:04]} 14. Qb3 {[%clk 0:02:29]}  Kh8 {[%clk 0:01:52]} 15. dxe5 {[%clk 0:02:27]}  Nxe5 {[%clk 0:01:50]} 16. Nxe5 {[%clk 0:02:19]}  Qxe5 {[%clk 0:01:50]} 17. Nf3 {[%clk 0:02:17]}  Qe7 {[%clk 0:01:31]} 18. Be2 {[%clk 0:02:13]}  Ba6 {[%clk 0:01:23]} 19. Qa3 {[%clk 0:02:10]}  Qxa3 {[%clk 0:01:17]} 20. bxa3 {[%clk 0:02:09]}  Re8 {[%clk 0:01:17]} 21. Bxa6 {[%clk 0:02:02]}  Nxa6 {[%clk 0:01:16]} 22. Ke2 {[%clk 0:01:59]}  Nc5 {[%clk 0:01:12]} 23. Rhd1 {[%clk 0:01:59]}  Re7 {[%clk 0:01:01]} 24. Rxd5 {[%clk 0:01:52]}  Rae8 {[%clk 0:01:00]} 25. Rad1 {[%clk 0:01:51]}  Rxe3+ {[%clk 0:01:00]} 26. Kf2 {[%clk 0:01:52]}  Rxa3 {[%clk 0:00:52]} 27. Rd8 {[%clk 0:01:48]}  Rxa2+ {[%clk 0:00:52]} 28. Kf1 {[%clk 0:01:37]}  Re2 {[%clk 0:00:49]} 29. R1d5 {[%clk 0:01:30]}  h6 {[%clk 0:00:44]} 30. h4 {[%clk 0:01:30]}  Re7 {[%clk 0:00:42]} 31. h5 {[%clk 0:01:26]}  Kh7 {[%clk 0:00:42]} 32. Nh4 {[%clk 0:01:25]}  Rf7+ {[%clk 0:00:39]} 33. Kg1 {[%clk 0:01:24]}  Rff8 {[%clk 0:00:34]} 34. R8d6 {[%clk 0:01:18]}  Ne4 {[%clk 0:00:32]} 35. Rc6 {[%clk 0:01:17]}  Nf6 {[%clk 0:00:29]} 36. Rf5 {[%clk 0:01:14]}  Rc8 {[%clk 0:00:27]} 37. Rd6 {[%clk 0:01:03]}  Rfd8 {[%clk 0:00:27]} 38. Re6 {[%clk 0:01:03]}  Re8 {[%clk 0:00:21]} 0-1


[Site "https://www.chess.com"]

[Event "Titled Tuesday Blitz April 19 Late 2022"]
[White "Fonseca Manrique, Enrique"]
[Black "Bryakin, Mikhail"]
[WhiteFideId "5114330"]
[BlackFideId "4165314"]
[WhiteElo "2564"]
[BlackElo "2417"]
[Result "0-1"]
[Round "02"]
[TimeControl "180+1"]
[Date "2022.04.19"]
[WhiteClock "0:00:31"]
[BlackClock "0:00:46"]

1. e4 {[%clk 0:03:00]}  c5 {[%clk 0:02:55]} 2. Nf3 {[%clk 0:03:00]}  Nc6 {[%clk 0:02:56]} 3. Bb5 {[%clk 0:03:01]}  Na5 {[%clk 0:02:53]} 4. O-O {[%clk 0:02:59]}  a6 {[%clk 0:02:52]} 5. Be2 {[%clk 0:02:59]}  b5 {[%clk 0:02:52]} 6. c3 {[%clk 0:02:57]}  Bb7 {[%clk 0:02:48]} 7. d3 {[%clk 0:02:53]}  g6 {[%clk 0:02:46]} 8. Re1 {[%clk 0:02:53]}  Bg7 {[%clk 0:02:43]} 9. Nbd2 {[%clk 0:02:53]}  d6 {[%clk 0:02:42]} 10. Nf1 {[%clk 0:02:53]}  e6 {[%clk 0:02:37]} 11. Ng3 {[%clk 0:02:53]}  Ne7 {[%clk 0:02:37]} 12. h4 {[%clk 0:02:47]}  h6 {[%clk 0:02:37]} 13. Be3 {[%clk 0:02:46]}  c4 {[%clk 0:02:31]} 14. d4 {[%clk 0:02:42]}  d5 {[%clk 0:02:32]} 15. e5 {[%clk 0:02:31]}  Nac6 {[%clk 0:02:31]} 16. b3 {[%clk 0:02:20]}  Nf5 {[%clk 0:02:18]} 17. Nxf5 {[%clk 0:02:20]}  gxf5 {[%clk 0:02:10]} 18. Qd2 {[%clk 0:02:16]}  Kd7 {[%clk 0:02:03]} 19. Reb1 {[%clk 0:02:13]}  Kc7 {[%clk 0:02:03]} 20. a4 {[%clk 0:02:09]}  Na5 {[%clk 0:01:58]} 21. bxc4 {[%clk 0:02:01]}  Nxc4 {[%clk 0:01:51]} 22. Qc1 {[%clk 0:01:48]}  Bc6 {[%clk 0:01:48]} 23. Bf4 {[%clk 0:01:30]}  Qe7 {[%clk 0:01:33]} 24. g3 {[%clk 0:01:28]}  Qd7 {[%clk 0:01:25]} 25. Qd1 {[%clk 0:01:23]}  bxa4 {[%clk 0:01:14]} 26. Bxc4 {[%clk 0:01:19]}  dxc4 {[%clk 0:01:14]} 27. Nd2 {[%clk 0:01:09]}  Qd5 {[%clk 0:01:10]} 28. f3 {[%clk 0:01:09]}  Rab8 {[%clk 0:01:03]} 29. Kf2 {[%clk 0:01:05]}  Rxb1 {[%clk 0:00:59]} 30. Rxb1 {[%clk 0:00:50]}  Rb8 {[%clk 0:00:59]} 31. Rxb8 {[%clk 0:00:48]}  Kxb8 {[%clk 0:01:00]} 32. Qb1+ {[%clk 0:00:44]}  Qb5 {[%clk 0:00:59]} 33. Qa2 {[%clk 0:00:42]}  Bf8 {[%clk 0:00:51]} 34. Nxc4 {[%clk 0:00:31]}  Bd5 {[%clk 0:00:46]} 0-1


[Site "https://www.chess.com"]

[Event "Titled Tuesday Blitz April 19 Late 2022"]
[White "Goncalves, Ivan Mesquita V"]
[Black "Melikhov, Evgeny V."]
[WhiteFideId "2114224"]
[BlackFideId "4122046"]
[WhiteElo "2299"]
[BlackElo "1931"]
[Result "1-0"]
[Round "02"]
[TimeControl "180+1"]
[Date "2022.04.19"]
[WhiteClock "0:00:17"]
[BlackClock "0:00:12"]

1. c4 {[%clk 0:02:55]}  e5 {[%clk 0:02:59]} 2. Nc3 {[%clk 0:02:54]}  d6 {[%clk 0:02:59]} 3. g3 {[%clk 0:02:54]}  f5 {[%clk 0:02:59]} 4. Bg2 {[%clk 0:02:54]}  Nf6 {[%clk 0:02:59]} 5. d3 {[%clk 0:02:54]}  Be7 {[%clk 0:02:58]} 6. e3 {[%clk 0:02:50]}  O-O {[%clk 0:02:57]} 7. Nge2 {[%clk 0:02:50]}  Nc6 {[%clk 0:02:51]} 8. b3 {[%clk 0:02:49]}  Qe8 {[%clk 0:02:49]} 9. Bb2 {[%clk 0:02:48]}  Be6 {[%clk 0:02:42]} 10. h3 {[%clk 0:02:47]}  a6 {[%clk 0:02:38]} 11. a3 {[%clk 0:02:47]}  Rb8 {[%clk 0:02:38]} 12. d4 {[%clk 0:02:40]}  Bf7 {[%clk 0:02:32]} 13. d5 {[%clk 0:02:32]}  Nd8 {[%clk 0:02:30]} 14. Qc2 {[%clk 0:02:31]}  e4 {[%clk 0:02:27]} 15. Nd4 {[%clk 0:02:24]}  Bg6 {[%clk 0:02:23]} 16. b4 {[%clk 0:02:21]}  Nd7 {[%clk 0:02:23]} 17. Bf1 {[%clk 0:02:20]}  Ne5 {[%clk 0:02:22]} 18. Be2 {[%clk 0:02:20]}  Bh5 {[%clk 0:02:18]} 19. g4 {[%clk 0:02:18]}  fxg4 {[%clk 0:02:08]} 20. Qxe4 {[%clk 0:02:08]}  Nf3+ {[%clk 0:02:01]} 21. Bxf3 {[%clk 0:02:00]}  gxf3 {[%clk 0:02:00]} 22. Rg1 {[%clk 0:01:49]}  Bf6 {[%clk 0:01:58]} 23. Kd2 {[%clk 0:01:32]}  Qxe4 {[%clk 0:01:47]} 24. Nxe4 {[%clk 0:01:32]}  Be5 {[%clk 0:01:47]} 25. Ng5 {[%clk 0:01:25]}  h6 {[%clk 0:01:32]} 26. Ne4 {[%clk 0:01:24]}  Kh7 {[%clk 0:01:26]} 27. Bc3 {[%clk 0:01:23]}  Bg6 {[%clk 0:01:22]} 28. Ng3 {[%clk 0:01:18]}  c5 {[%clk 0:01:16]} 29. dxc6 {[%clk 0:01:15]}  bxc6 {[%clk 0:01:14]} 30. Nb3 {[%clk 0:01:08]}  Bxc3+ {[%clk 0:01:13]} 31. Kxc3 {[%clk 0:01:08]}  Nf7 {[%clk 0:01:06]} 32. Na5 {[%clk 0:01:01]}  Rbc8 {[%clk 0:01:03]} 33. Rad1 {[%clk 0:01:01]}  Rfd8 {[%clk 0:00:54]} 34. h4 {[%clk 0:01:01]}  Kg8 {[%clk 0:00:43]} 35. h5 {[%clk 0:00:59]}  Bh7 {[%clk 0:00:42]} 36. Rd4 {[%clk 0:00:59]}  c5 {[%clk 0:00:32]} 37. Rd5 {[%clk 0:00:56]}  cxb4+ {[%clk 0:00:28]} 38. axb4 {[%clk 0:00:57]}  Kf8 {[%clk 0:00:25]} 39. Rgd1 {[%clk 0:00:55]}  Bg8 {[%clk 0:00:22]} 40. Nf5 {[%clk 0:00:46]}  Ne5 {[%clk 0:00:21]} 41. Rxd6 {[%clk 0:00:43]}  Rxd6 {[%clk 0:00:19]} 42. Nxd6 {[%clk 0:00:43]}  Rc7 {[%clk 0:00:18]} 43. c5 {[%clk 0:00:40]}  Ng4 {[%clk 0:00:19]} 44. Rd2 {[%clk 0:00:40]}  Nf6 {[%clk 0:00:16]} 45. e4 {[%clk 0:00:28]}  Nxh5 {[%clk 0:00:16]} 46. Rd3 {[%clk 0:00:28]}  Nf6 {[%clk 0:00:14]} 47. Rxf3 {[%clk 0:00:27]}  Ke7 {[%clk 0:00:14]} 48. Kd4 {[%clk 0:00:26]}  h5 {[%clk 0:00:14]} 49. Rg3 {[%clk 0:00:26]}  Kf8 {[%clk 0:00:12]} 50. Nac4 {[%clk 0:00:23]}  h4 {[%clk 0:00:10]} 51. Rh3 {[%clk 0:00:22]}  g5 {[%clk 0:00:11]} 52. Ne5 {[%clk 0:00:20]}  Be6 {[%clk 0:00:10]} 53. Rh1 {[%clk 0:00:20]}  h3 {[%clk 0:00:10]} 54. Nf3 {[%clk 0:00:19]}  g4 {[%clk 0:00:10]} 55. Ng5 {[%clk 0:00:19]}  Bd7 {[%clk 0:00:11]} 56. e5 {[%clk 0:00:19]}  Nh5 {[%clk 0:00:10]} 57. e6 {[%clk 0:00:19]}  Ke7 {[%clk 0:00:08]} 58. exd7 {[%clk 0:00:19]}  Rxd7 {[%clk 0:00:09]} 59. Ne4 {[%clk 0:00:18]}  Nf4 {[%clk 0:00:08]} 60. Kc4 {[%clk 0:00:09]}  Rd8 {[%clk 0:00:08]} 61. Rg1 {[%clk 0:00:09]}  Ng2 {[%clk 0:00:07]} 62. Nf5+ {[%clk 0:00:08]}  Kd7 {[%clk 0:00:07]} 63. Ne3 {[%clk 0:00:08]}  Rh8 {[%clk 0:00:06]} 64. Nxg2 {[%clk 0:00:08]}  hxg2 {[%clk 0:00:06]} 65. Rxg2 {[%clk 0:00:09]}  Rg8 {[%clk 0:00:06]} 66. Kd3 {[%clk 0:00:09]}  Kc6 {[%clk 0:00:06]} 67. Rg3 {[%clk 0:00:09]}  Kb5 {[%clk 0:00:06]} 68. Kc3 {[%clk 0:00:09]}  a5 {[%clk 0:00:06]} 69. Nd6+ {[%clk 0:00:10]}  Kc6 {[%clk 0:00:06]} 70. bxa5 {[%clk 0:00:11]}  Kxc5 {[%clk 0:00:06]} 71. Nc4 {[%clk 0:00:12]}  Kb5 {[%clk 0:00:06]} 72. f3 {[%clk 0:00:12]}  Rc8 {[%clk 0:00:06]} 73. Rxg4 {[%clk 0:00:12]}  Rc5 {[%clk 0:00:06]} 74. Re4 {[%clk 0:00:12]}  Rf5 {[%clk 0:00:06]} 75. Re5+ {[%clk 0:00:12]}  Rxe5 {[%clk 0:00:06]} 76. Nxe5 {[%clk 0:00:13]}  Kxa5 {[%clk 0:00:07]} 77. Kd4 {[%clk 0:00:13]}  Kb6 {[%clk 0:00:08]} 78. Kd5 {[%clk 0:00:14]}  Kc7 {[%clk 0:00:08]} 79. Ke6 {[%clk 0:00:15]}  Kd8 {[%clk 0:00:09]} 80. Kf7 {[%clk 0:00:15]}  Kc7 {[%clk 0:00:09]} 81. f4 {[%clk 0:00:16]}  Kd6 {[%clk 0:00:10]} 82. Ng6 {[%clk 0:00:16]}  Kd5 {[%clk 0:00:10]} 83. f5 {[%clk 0:00:17]}  Kd6 {[%clk 0:00:11]} 84. f6 {[%clk 0:00:18]}  Kd7 {[%clk 0:00:12]} 85. Kg7 {[%clk 0:00:17]} 1-0


[Site "https://www.chess.com"]

[Event "Titled Tuesday Blitz April 19 Late 2022"]
[White "Grigorov, Grigor"]
[Black "Hnydiuk, Aleksander"]
[WhiteFideId "2907313"]
[BlackFideId "1109057"]
[WhiteElo "2510"]
[BlackElo "2374"]
[Result "1-0"]
[Round "02"]
[TimeControl "180+1"]
[Date "2022.04.19"]
[WhiteClock "0:01:35"]
[BlackClock "0:00:47"]

1. d4 {[%clk 0:03:00]}  Nf6 {[%clk 0:02:59]} 2. Nf3 {[%clk 0:03:01]}  g6 {[%clk 0:02:59]} 3. Bg5 {[%clk 0:03:00]}  Bg7 {[%clk 0:02:59]} 4. Nbd2 {[%clk 0:03:00]}  O-O {[%clk 0:02:58]} 5. e3 {[%clk 0:02:57]}  d6 {[%clk 0:02:56]} 6. Bc4 {[%clk 0:02:57]}  b6 {[%clk 0:02:48]} 7. O-O {[%clk 0:02:57]}  Bb7 {[%clk 0:02:48]} 8. Qe2 {[%clk 0:02:56]}  c5 {[%clk 0:02:46]} 9. c3 {[%clk 0:02:52]}  Nbd7 {[%clk 0:02:43]} 10. e4 {[%clk 0:02:47]}  h6 {[%clk 0:02:42]} 11. Bh4 {[%clk 0:02:46]}  Nh5 {[%clk 0:02:38]} 12. Qe3 {[%clk 0:02:39]}  g5 {[%clk 0:02:34]} 13. Bxg5 {[%clk 0:02:23]}  hxg5 {[%clk 0:02:34]} 14. Qxg5 {[%clk 0:02:23]}  Nhf6 {[%clk 0:02:26]} 15. e5 {[%clk 0:02:17]}  dxe5 {[%clk 0:02:21]} 16. dxe5 {[%clk 0:02:16]}  Nd5 {[%clk 0:01:41]} 17. Qh5 {[%clk 0:01:49]}  Nf4 {[%clk 0:01:06]} 18. Qg4 {[%clk 0:01:48]}  Ne6 {[%clk 0:00:45]} 19. Bxe6 {[%clk 0:01:41]}  fxe6 {[%clk 0:00:46]} 20. Qxe6+ {[%clk 0:01:40]}  Kh8 {[%clk 0:00:47]} 21. Ng5 {[%clk 0:01:35]} 1-0


[Site "https://www.chess.com"]

[Event "Titled Tuesday Blitz April 19 Late 2022"]
[White "Hasangatin, Ramil"]
[Black "Martinez Alcantara, Jose Eduardo"]
[WhiteFideId "4122160"]
[BlackFideId "3805662"]
[WhiteElo "2375"]
[BlackElo "2690"]
[Result "0-1"]
[Round "02"]
[TimeControl "180+1"]
[Date "2022.04.19"]
[WhiteClock "0:00:03"]
[BlackClock "0:00:43"]

1. e4 {[%clk 0:02:59]}  c5 {[%clk 0:02:59]} 2. Nf3 {[%clk 0:02:58]}  d6 {[%clk 0:02:59]} 3. d4 {[%clk 0:02:58]}  cxd4 {[%clk 0:03:00]} 4. Qxd4 {[%clk 0:02:58]}  Nc6 {[%clk 0:03:00]} 5. Bb5 {[%clk 0:02:57]}  a6 {[%clk 0:03:00]} 6. Bxc6+ {[%clk 0:02:58]}  bxc6 {[%clk 0:03:01]} 7. e5 {[%clk 0:02:58]}  f6 {[%clk 0:02:54]} 8. exd6 {[%clk 0:02:58]}  e5 {[%clk 0:02:55]} 9. Qc4 {[%clk 0:02:57]}  Qxd6 {[%clk 0:02:53]} 10. O-O {[%clk 0:02:56]}  Be6 {[%clk 0:02:47]} 11. Qa4 {[%clk 0:02:56]}  Bd7 {[%clk 0:02:42]} 12. Nc3 {[%clk 0:02:52]}  Qb4 {[%clk 0:02:42]} 13. Rd1 {[%clk 0:02:43]}  Nh6 {[%clk 0:02:19]} 14. Bxh6 {[%clk 0:02:02]}  gxh6 {[%clk 0:02:19]} 15. Rd2 {[%clk 0:01:49]}  Qxa4 {[%clk 0:02:04]} 16. Nxa4 {[%clk 0:01:48]}  Rb8 {[%clk 0:02:05]} 17. Rad1 {[%clk 0:01:45]}  Be6 {[%clk 0:02:04]} 18. b3 {[%clk 0:01:45]}  Bb4 {[%clk 0:02:02]} 19. c3 {[%clk 0:01:41]}  Be7 {[%clk 0:01:59]} 20. Ne1 {[%clk 0:01:40]}  Kf7 {[%clk 0:01:54]} 21. Nd3 {[%clk 0:01:40]}  Rbd8 {[%clk 0:01:42]} 22. Ndc5 {[%clk 0:01:40]}  Rxd2 {[%clk 0:01:43]} 23. Rxd2 {[%clk 0:01:40]}  Bc8 {[%clk 0:01:44]} 24. f3 {[%clk 0:01:29]}  h5 {[%clk 0:01:43]} 25. b4 {[%clk 0:01:27]}  h4 {[%clk 0:01:43]} 26. h3 {[%clk 0:01:25]}  f5 {[%clk 0:01:41]} 27. Nb6 {[%clk 0:01:24]}  Bxc5+ {[%clk 0:01:37]} 28. bxc5 {[%clk 0:01:25]}  Be6 {[%clk 0:01:38]} 29. Rd6 {[%clk 0:01:16]}  Ke7 {[%clk 0:01:38]} 30. Rxc6 {[%clk 0:01:13]}  Rd8 {[%clk 0:01:39]} 31. Rc7+ {[%clk 0:01:12]}  Kf6 {[%clk 0:01:40]} 32. Rxh7 {[%clk 0:00:57]}  Rd1+ {[%clk 0:01:40]} 33. Kf2 {[%clk 0:00:48]}  Rc1 {[%clk 0:01:40]} 34. Rh6+ {[%clk 0:00:46]}  Kf7 {[%clk 0:01:40]} 35. Rxh4 {[%clk 0:00:46]}  Rxc3 {[%clk 0:01:40]} 36. Ra4 {[%clk 0:00:23]}  Rxc5 {[%clk 0:01:31]} 37. Rxa6 {[%clk 0:00:23]}  f4 {[%clk 0:01:30]} 38. Ra7+ {[%clk 0:00:20]}  Kg6 {[%clk 0:01:27]} 39. Nd7 {[%clk 0:00:20]}  Rc2+ {[%clk 0:01:25]} 40. Kg1 {[%clk 0:00:21]}  Kf5 {[%clk 0:01:23]} 41. Nf8 {[%clk 0:00:18]}  Bxa2 {[%clk 0:01:23]} 42. Rh7 {[%clk 0:00:15]}  Rd2 {[%clk 0:01:07]} 43. Rh5+ {[%clk 0:00:14]}  Kf6 {[%clk 0:01:07]} 44. Rh7 {[%clk 0:00:13]}  Bf7 {[%clk 0:01:05]} 45. h4 {[%clk 0:00:12]}  Rd8 {[%clk 0:00:53]} 46. Rh6+ {[%clk 0:00:08]}  Kf5 {[%clk 0:00:53]} 47. Rh8 {[%clk 0:00:07]}  e4 {[%clk 0:00:51]} 48. fxe4+ {[%clk 0:00:07]}  Kxe4 {[%clk 0:00:52]} 49. Kh2 {[%clk 0:00:05]}  Rd2 {[%clk 0:00:50]} 50. Rh7 {[%clk 0:00:05]}  Bc4 {[%clk 0:00:45]} 51. Re7+ {[%clk 0:00:05]}  Kf5 {[%clk 0:00:46]} 52. Nh7 {[%clk 0:00:04]}  f3 {[%clk 0:00:44]} 53. Re8 {[%clk 0:00:02]}  f2 {[%clk 0:00:43]} 54. Rf8+ {[%clk 0:00:01]}  Kg6 {[%clk 0:00:44]} 55. Ng5 {[%clk 0:00:01]}  f1=Q {[%clk 0:00:45]} 56. Rxf1 {[%clk 0:00:01]}  Bxf1 {[%clk 0:00:46]} 57. Nf3 {[%clk 0:00:01]}  Rxg2+ {[%clk 0:00:46]} 58. Kh3 {[%clk 0:00:02]}  Ra2+ {[%clk 0:00:43]} 59. Kg3 {[%clk 0:00:02]}  Ba6 {[%clk 0:00:44]} 60. Kf4 {[%clk 0:00:03]}  Ra4+ {[%clk 0:00:44]} 61. Kg3 {[%clk 0:00:03]}  Ra3 {[%clk 0:00:44]} 62. Kf4 {[%clk 0:00:03]}  Bb7 {[%clk 0:00:45]} 63. Ne5+ {[%clk 0:00:03]}  Kh5 {[%clk 0:00:45]} 64. Nd7 {[%clk 0:00:01]}  Kxh4 {[%clk 0:00:44]} 65. Ke5 {[%clk 0:00:01]}  Bc8 {[%clk 0:00:43]} 66. Nc5 {[%clk 0:00:01]}  Ra5 {[%clk 0:00:43]} 67. Kd5 {[%clk 0:00:02]}  Bg4 {[%clk 0:00:43]} 68. Kd6 {[%clk 0:00:02]}  Ra1 {[%clk 0:00:44]} 69. Ne6 {[%clk 0:00:03]}  Ra6+ {[%clk 0:00:43]} 0-1


[Site "https://www.chess.com"]

[Event "Titled Tuesday Blitz April 19 Late 2022"]
[White "Holt, Conrad"]
[Black "Bodi, Tibor"]
[WhiteFideId "2034387"]
[BlackFideId "701084"]
[WhiteElo "2586"]
[BlackElo "2243"]
[Result "0-1"]
[Round "02"]
[TimeControl "180+1"]
[Date "2022.04.19"]
[WhiteClock "0:00:19"]
[BlackClock "0:00:09"]

1. d4 {[%clk 0:03:00]}  Nf6 {[%clk 0:02:59]} 2. c4 {[%clk 0:03:01]}  e6 {[%clk 0:02:58]} 3. Nc3 {[%clk 0:03:01]}  Bb4 {[%clk 0:02:58]} 4. Qc2 {[%clk 0:03:02]}  O-O {[%clk 0:02:58]} 5. e4 {[%clk 0:03:01]}  d5 {[%clk 0:02:58]} 6. e5 {[%clk 0:03:01]}  Ne4 {[%clk 0:02:57]} 7. Bd3 {[%clk 0:03:02]}  c5 {[%clk 0:02:56]} 8. Nf3 {[%clk 0:03:02]}  cxd4 {[%clk 0:02:52]} 9. Nxd4 {[%clk 0:03:03]}  Nd7 {[%clk 0:02:51]} 10. Bf4 {[%clk 0:03:03]}  Bxc3+ {[%clk 0:02:45]} 11. bxc3 {[%clk 0:03:02]}  Ndc5 {[%clk 0:02:44]} 12. O-O {[%clk 0:03:01]}  Bd7 {[%clk 0:02:32]} 13. Be2 {[%clk 0:03:00]}  Na4 {[%clk 0:02:14]} 14. cxd5 {[%clk 0:02:58]}  exd5 {[%clk 0:02:14]} 15. f3 {[%clk 0:02:58]}  Nexc3 {[%clk 0:02:12]} 16. Bd3 {[%clk 0:02:58]}  h6 {[%clk 0:02:07]} 17. Qd2 {[%clk 0:02:49]}  Qb6 {[%clk 0:02:01]} 18. Kh1 {[%clk 0:02:48]}  Kh8 {[%clk 0:01:46]} 19. Bc2 {[%clk 0:02:40]}  Rac8 {[%clk 0:01:21]} 20. Qd3 {[%clk 0:02:29]}  Qg6 {[%clk 0:01:21]} 21. Qe3 {[%clk 0:02:22]}  Qa6 {[%clk 0:01:10]} 22. e6 {[%clk 0:02:17]}  fxe6 {[%clk 0:00:47]} 23. Bxh6 {[%clk 0:02:01]}  e5 {[%clk 0:00:35]} 24. Bxg7+ {[%clk 0:02:01]}  Kxg7 {[%clk 0:00:35]} 25. Qg5+ {[%clk 0:02:01]}  Kf7 {[%clk 0:00:33]} 26. Rfe1 {[%clk 0:01:47]}  Qf6 {[%clk 0:00:29]} 27. Qh5+ {[%clk 0:01:46]}  Ke7 {[%clk 0:00:22]} 28. Rxe5+ {[%clk 0:01:44]}  Kd6 {[%clk 0:00:23]} 29. Rae1 {[%clk 0:01:42]}  Rce8 {[%clk 0:00:19]} 30. f4 {[%clk 0:00:49]}  Qxf4 {[%clk 0:00:18]} 31. Nf3 {[%clk 0:00:19]}  Rxe5 {[%clk 0:00:10]} 32. Rxe5 {[%clk 0:00:20]}  Qc1+ {[%clk 0:00:09]} 33. Re1 {[%clk 0:00:20]}  Qxe1+ {[%clk 0:00:09]} 34. Nxe1 {[%clk 0:00:19]}  Rf1# {[%clk 0:00:09]} 0-1


[Site "https://www.chess.com"]